fUST/lending_fUST_20260320
["ID","MTS","AMOUNT","RATE_DAILY","PERIOD"]
[408627837,1774011043799,-6466.38045014,9.898e-05,2]
[408627838,1774011043809,-150.0,9.9e-05,2]
[408627839,1774011043819,-2288.3,9.9e-05,2]
[408627840,1774011043829,-169466.59536897,9.918e-05,2]
[408627841,1774011044177,-2957.94987597,9.918e-05,2]
[408627842,1774011044190,-24514.72309898,9.918e-05,2]
[408627843,1774011044325,-469.07870949,9.918e-05,2]
[408627844,1774011044337,-752.23301139,9.918e-05,2]
[408627845,1774011044550,-2581.92492425,9.918e-05,2]
[408627849,1774011046003,-160.0,8.232e-05,2]
[408627850,1774011046013,-211.88417,9.878e-05,2]
[408627851,1774011046023,-7319.7204471,9.918e-05,2]
[408627852,1774011046162,-62342.12957488,9.918e-05,2]
[408627893,1774012232079,-167.952475,3.885e-05,2]
[408627895,1774012232091,-150.378,5.49e-05,2]
[408627897,1774012232101,-1005.91678413,5.49e-05,2]
[408627899,1774012232114,-305.30021587,5.49e-05,2]
[408627901,1774012232125,-62.09978413,5.49e-05,2]
[408627903,1774012232137,-316.715,5.49e-05,2]
[408627906,1774012232154,-98.46821587,5.49e-05,2]
[408627908,1774012232165,-735.0,5.49e-05,2]
[408627910,1774012232175,-185.693,5.49e-05,2]
[408627912,1774012232185,-3203.39664428,5.523e-05,2]
[408627914,1774012232197,-3045.33402918,5.801e-05,2]
[408627916,1774012232209,-683.0,5.801e-05,2]
[408627918,1774012232224,-2484.38657039,5.801e-05,2]
[408627920,1774012232236,-800.0,5.961e-05,3]
[408627922,1774012232249,-6389.5496644,6.603e-05,2]
[408627924,1774012232259,-47016.11336975,8.119e-05,2]
[408627926,1774012232272,-2423.10000001,8.119e-05,2]
[408628025,1774012238163,-3838.94020047,8.119e-05,2]
[408628027,1774012238175,-5186.01910437,8.119e-05,2]
[408628033,1774012238218,-40975.04069516,8.119e-05,2]
[408628035,1774012238229,-1487163.85662404,8.119e-05,2]
[408628037,1774012238246,-1979.721,8.174e-05,2]
[408628039,1774012238255,-185.866,8.174e-05,2]
[408628041,1774012238265,-7267.10679069,8.206e-05,2]
[408628043,1774012238274,-500.0,8.219e-05,2]
[408628045,1774012238284,-543.31891505,8.219e-05,2]
[408628047,1774012238293,-543.31891505,8.219e-05,2]
[408628049,1774012238302,-543.31891505,8.219e-05,2]
[408628051,1774012238317,-543.31891505,8.219e-05,2]
[408628053,1774012238326,-500.0,8.219e-05,2]
[408628055,1774012238336,-543.31891505,8.219e-05,2]
[408628057,1774012238345,-543.31891505,8.219e-05,2]
[408628059,1774012238357,-500.0,8.219e-05,2]
[408628061,1774012238367,-543.31891505,8.219e-05,2]
[408628063,1774012238376,-543.31891505,8.219e-05,2]
[408628065,1774012238387,-500.0,8.219e-05,2]
[408628067,1774012238397,-500.0,8.219e-05,2]
[408628069,1774012238406,-543.31891505,8.219e-05,2]
[408628071,1774012238415,-524.05853509,8.219e-05,2]
[408628073,1774012238425,-543.31891505,8.219e-05,2]
[408628075,1774012238434,-543.31891505,8.219e-05,2]
[408628077,1774012238445,-543.31891505,8.219e-05,2]
[408628079,1774012238455,-543.31891505,8.219e-05,2]
[408628081,1774012238464,-543.31891505,8.219e-05,2]
[408628083,1774012238473,-543.31891505,8.219e-05,2]
[408628085,1774012238482,-500.0,8.219e-05,2]
[408628087,1774012238491,-500.0,8.363e-05,2]
[408628089,1774012238501,-112286.45181754,8.387e-05,2]
[408628091,1774012238512,-56335.09555964,8.387e-05,2]
[408628310,1774012240692,-3489.60409446,8.387e-05,2]
[408628550,1774012243376,-2432.0,8.387e-05,2]
[408628741,1774012246341,-351.92062858,8.387e-05,2]
[408628742,1774012246397,-8193.27344485,8.387e-05,2]
[408628769,1774013432266,-438.0,5.849e-05,2]
[408628771,1774013432276,-821.979,5.849e-05,2]
[408628773,1774013432286,-185.693,5.849e-05,2]
[408628775,1774013432296,-504.0,5.849e-05,2]
[408628777,1774013432306,-177.13654662,6.834e-05,2]
[408628779,1774013432315,-800.0,7.738e-05,3]
[408628781,1774013432325,-242.32779218,7.917e-05,2]
[408628783,1774013432341,-20495.32243746,7.917e-05,2]
[408628785,1774013432350,-500.0,7.993e-05,2]
[408628787,1774013432360,-300.0,8.014e-05,2]
[408628790,1774013432370,-1200.0,8.014e-05,2]
[408628792,1774013432379,-190.96752782,8.015e-05,2]
[408628794,1774013432388,-500.0,8.015e-05,2]
[408628795,1774013432400,-19544.25421871,8.015e-05,2]
[408629031,1774013446914,-2890.0,8.015e-05,2]
[408629033,1774013446926,-8726.68767751,8.015e-05,2]
[408629035,1774013446938,-1749.21782956,8.015e-05,2]
[408629083,1774013845512,152.0,3e-08,60]
[408629085,1774013845713,152.0,4e-08,60]
[408629087,1774013846097,152.0,6e-08,60]
[408629096,1774014486821,300.0,2.002e-05,2]
[408629097,1774014486851,300.0,2.002e-05,2]
[408629098,1774014486880,300.0,2.002e-05,2]
[408629099,1774014486907,300.0,2.002e-05,2]
[408629100,1774014486935,300.0,2.002e-05,2]
[408629101,1774014493588,10000.0,2e-05,2]
[408629102,1774014501471,10000.0,8.4e-05,120]
[408629103,1774014508529,10000.0,8.4e-05,120]
[408629104,1774014524076,10000.0,2e-05,2]
[408629105,1774014551129,-6602.16400913,2.002e-05,2]
[408629116,1774014631501,-1076.45481776,2.002e-05,2]
[408629120,1774014631667,-821.38117311,2.002e-05,2]
[408629122,1774014631677,-300.0,5.651e-05,2]
[408629124,1774014631688,-438.0,6.15e-05,2]
[408629126,1774014631698,-735.0,6.15e-05,2]
[408629128,1774014631708,-185.693,6.15e-05,2]
[408629130,1774014631718,-3341.20910362,6.199e-05,2]
[408629132,1774014631729,-800.0,6.233e-05,3]
[408629133,1774014631739,-203.46667632,6.239e-05,2]
[408629134,1774014631749,-1102.42973848,6.299e-05,2]
[408629135,1774014631762,-357.5151,6.299e-05,2]
[408629154,1774014637604,-359.93716905,6.299e-05,2]
[408629156,1774014637616,-4824.72064836,6.299e-05,2]
[408629158,1774014637627,-7441.54770578,6.399e-05,2]
[408629160,1774014637636,-500.0,6.431e-05,2]
[408629162,1774014637646,-500.0,6.431e-05,2]
[408629164,1774014637656,-500.0,6.431e-05,2]
[408629166,1774014637665,-500.0,6.431e-05,2]
[408629168,1774014637675,-500.0,6.431e-05,2]
[408629170,1774014637685,-189.56989408,6.431e-05,2]
[408629172,1774014637695,-500.0,6.431e-05,2]
[408629174,1774014637704,-500.0,6.431e-05,2]
[408629175,1774014637713,-500.0,6.431e-05,2]
[408629177,1774014637723,-500.0,6.431e-05,2]
[408629179,1774014637733,-500.0,6.431e-05,2]
[408629181,1774014637742,-500.0,6.431e-05,2]
[408629183,1774014637752,-500.0,6.431e-05,2]
[408629185,1774014637761,-500.0,6.431e-05,2]
[408629187,1774014637771,-500.0,6.431e-05,2]
[408629188,1774014637781,-500.0,6.431e-05,2]
[408629190,1774014637790,-500.0,6.431e-05,2]
[408629192,1774014637800,-500.0,6.431e-05,2]
[408629194,1774014637809,-500.0,6.431e-05,2]
[408629196,1774014637818,-500.0,6.431e-05,2]
[408629198,1774014637827,-500.0,6.431e-05,2]
[408629199,1774014637837,-500.0,6.431e-05,2]
[408629201,1774014637846,-500.0,6.431e-05,2]
[408629203,1774014637856,-500.0,6.431e-05,2]
[408629205,1774014637866,-500.0,6.431e-05,2]
[408629207,1774014637875,-500.0,6.431e-05,2]
[408629210,1774014637885,-500.0,6.431e-05,2]
[408629211,1774014637895,-500.0,6.431e-05,2]
[408629213,1774014637905,-500.0,6.431e-05,2]
[408629216,1774014637915,-500.0,6.431e-05,2]
[408629218,1774014637924,-500.0,6.431e-05,2]
[408629220,1774014637934,-500.0,6.431e-05,2]
[408629222,1774014637949,-500.0,6.431e-05,2]
[408629224,1774014637958,-500.0,6.431e-05,2]
[408629226,1774014637968,-500.0,6.431e-05,2]
[408629228,1774014637978,-500.0,6.431e-05,2]
[408629230,1774014637987,-500.0,6.431e-05,2]
[408629232,1774014637997,-353.02268932,6.431e-05,2]
[408629234,1774014638006,-476.02838537,6.431e-05,2]
[408629236,1774014638015,-500.0,6.431e-05,2]
[408629238,1774014638024,-500.0,6.431e-05,2]
[408629240,1774014638034,-500.0,6.431e-05,2]
[408629242,1774014638044,-500.0,6.431e-05,2]
[408629244,1774014638056,-500.0,6.431e-05,2]
[408629246,1774014638065,-500.0,6.431e-05,2]
[408629248,1774014638076,-630.49874409,6.431e-05,2]
[408629250,1774014638087,-500.0,6.431e-05,2]
[408629252,1774014638101,-500.0,6.431e-05,2]
[408629254,1774014638113,-500.0,6.431e-05,2]
[408629256,1774014638124,-302.8104306,6.431e-05,2]
[408629258,1774014638133,-500.0,6.431e-05,2]
[408629260,1774014638143,-500.0,6.431e-05,2]
[408629263,1774014638153,-500.0,6.431e-05,2]
[408629265,1774014638163,-500.0,6.431e-05,2]
[408629266,1774014638173,-500.0,6.431e-05,2]
[408629269,1774014638183,-500.0,6.431e-05,2]
[408629270,1774014638193,-500.0,6.431e-05,2]
[408629271,1774014638203,-500.0,6.431e-05,2]
[408629272,1774014638212,-500.0,6.431e-05,2]
[408629273,1774014638223,-500.0,6.431e-05,2]
[408629274,1774014638234,-500.0,6.431e-05,2]
[408629275,1774014638244,-500.0,6.431e-05,2]
[408629276,1774014638254,-500.0,6.431e-05,2]
[408629277,1774014638264,-500.0,6.431e-05,2]
[408629278,1774014638274,-500.0,6.431e-05,2]
[408629279,1774014638285,-500.0,6.431e-05,2]
[408629280,1774014638296,-500.0,6.431e-05,2]
[408629281,1774014638307,-500.0,6.431e-05,2]
[408629282,1774014638317,-500.0,6.431e-05,2]
[408629283,1774014638328,-500.0,6.431e-05,2]
[408629284,1774014638338,-500.0,6.431e-05,2]
[408629285,1774014638348,-500.0,6.431e-05,2]
[408629286,1774014638358,-500.0,6.431e-05,2]
[408629287,1774014638368,-21089.8105089,6.432e-05,2]
[408629288,1774014638707,-1289.70641936,6.432e-05,2]
[408629289,1774014638719,-5023.31691675,6.432e-05,2]
[408629309,1774014639958,-823.99317226,6.432e-05,2]
[408629375,1774014645029,-3232.90007557,6.432e-05,2]
[408629417,1774014645948,-18540.27290716,6.432e-05,2]
[408629418,1774014645958,-500.0,6.473e-05,2]
[408629419,1774014645974,-8162.99844865,6.499e-05,2]
[408629420,1774014645985,-1132.05897335,6.499e-05,2]
[408629422,1774015483021,151.0,8.4e-05,120]
[408629423,1774015561639,151.0,8.4e-05,120]
[408629424,1774015564725,151.0,8.4e-05,120]
[408629425,1774015576802,151.0,8.4e-05,120]
[408629426,1774015616720,151.0,8.4e-05,120]
[408629427,1774015652473,151.0,8.4e-05,120]
[408629428,1774015695381,151.0,8.4e-05,120]
[408629429,1774015737572,151.0,8.4e-05,120]
[408629430,1774015777502,151.0,8.4e-05,120]
[408629431,1774015807621,151.0,8.4e-05,120]
[408629564,1774015838233,-203.46667631,5.041e-05,2]
[408629565,1774015838243,-368.79332769,5.094e-05,2]
[408629581,1774015840737,-3025.37098067,5.094e-05,2]
[408629582,1774015840747,-2544.60513649,5.145e-05,2]
[408629583,1774015840757,-800.0,5.299e-05,3]
[408629584,1774015840767,-500.0,5.754e-05,2]
[408629585,1774015840777,-152.34003759,5.754e-05,2]
[408629586,1774015840786,-438.0,6.15e-05,2]
[408629587,1774015840796,-363.614,6.15e-05,2]
[408629588,1774015840806,-185.693,6.15e-05,2]
[408629589,1774015840816,-19377.34584645,6.21e-05,2]
[408629598,1774015843026,-107.17575454,6.21e-05,2]
[408629599,1774015843039,-500.1309873,6.21e-05,2]
[408629600,1774015845478,151.0,8.4e-05,120]
[408629604,1774015846333,-14573.55864179,6.21e-05,2]
[408629605,1774015846391,-1872.93,6.21e-05,2]
[408629606,1774015846404,-13568.85876992,6.21e-05,2]
[408629607,1774015846415,-392.942692,6.213e-05,2]
[408629608,1774015846425,-500.57413802,6.22e-05,2]
[408629609,1774015846435,-500.0,6.22e-05,2]
[408629610,1774015846446,-500.0,6.22e-05,2]
[408629611,1774015846457,-500.0,6.22e-05,2]
[408629612,1774015846467,-500.0,6.22e-05,2]
[408629613,1774015846476,-407.3314148,6.44e-05,2]
[408629614,1774015846486,-392.942692,6.474e-05,2]
[408629615,1774015846496,-8238.49275575,6.599e-05,2]
[408629616,1774015846507,-392.942692,6.736e-05,2]
[408629617,1774015846518,-1000.0,6.768e-05,2]
[408629618,1774015846527,-392.942692,6.997e-05,2]
[408629619,1774015846538,-324.6893489,7.036e-05,2]
[408629620,1774015846547,-1264.94314,7.1e-05,2]
[408629621,1774015846557,-10202.1214,7.109e-05,2]
[408629622,1774015846566,-392.942692,7.259e-05,2]
[408629623,1774015846575,-407.3314148,7.269e-05,2]
[408629624,1774015846585,-1500.0,7.316e-05,2]
[408629625,1774015846595,-392.942692,7.52e-05,2]
[408629626,1774015846605,-2000.0,7.864e-05,2]
[408629627,1774015846616,-407.3314148,8.097e-05,2]
[408629628,1774015846626,-169002.78051338,8.1e-05,2]
[408629629,1774015846635,-300.0,8.183e-05,2]
[408629631,1774015846645,-46419.84403701,8.203e-05,2]
[408629633,1774015885913,151.0,8.4e-05,120]
[408629637,1774015927399,151.0,8.4e-05,120]
[408629638,1774015966731,151.0,8.4e-05,120]
[408629639,1774016007302,151.0,8.4e-05,120]
[408629640,1774016047266,151.0,8.4e-05,120]
[408629641,1774016077449,151.0,8.4e-05,120]
[408629642,1774016091150,299.10424672,2e-05,2]
[408629643,1774016124806,151.0,8.4e-05,120]
[408629646,1774016162741,151.0,8.4e-05,120]
[408629647,1774016197096,151.0,8.4e-05,120]
[408629648,1774016234823,151.0,8.4e-05,120]
[408629649,1774016277124,151.0,8.4e-05,120]
[408629650,1774016317121,151.0,8.4e-05,120]
[408629651,1774016352375,151.0,8.4e-05,120]
[408629652,1774016392354,151.0,8.4e-05,120]
[408629656,1774016422825,151.0,8.4e-05,120]
[408629657,1774016456846,151.0,8.4e-05,120]
[408629658,1774016487427,151.0,8.4e-05,120]
[408629659,1774016522094,151.0,8.4e-05,120]
[408629660,1774016567200,151.0,8.4e-05,120]
[408629661,1774016617943,151.0,8.4e-05,120]
[408629662,1774016656691,151.0,8.4e-05,120]
[408629663,1774016694781,151.0,8.4e-05,120]
[408629665,1774016732109,151.0,8.4e-05,120]
[408629666,1774016762217,17.0,8.4e-05,120]
[408629667,1774016762250,134.0,8.4e-05,120]
[408629670,1774016802232,151.0,8.4e-05,120]
[408629673,1774016846490,151.0,8.4e-05,120]
[408629674,1774016882265,151.0,8.4e-05,120]
[408629675,1774016927189,151.0,8.4e-05,120]
[408629679,1774016965151,151.0,8.4e-05,120]
[408629680,1774016995398,151.0,8.4e-05,120]
[408629708,1774017031916,-4449.82997806,5.272e-05,2]
[408629711,1774017031931,-966.53880659,5.325e-05,2]
[408629713,1774017031944,-300.0,5.479e-05,2]
[408629715,1774017031958,-800.0,6.196e-05,3]
[408629718,1774017031972,-4003.71223137,6.205e-05,2]
[408629720,1774017031987,-3873.45477029,6.205e-05,2]
[408629723,1774017032003,-5680.50130229,6.205e-05,2]
[408629739,1774017034660,151.0,8.4e-05,120]
[408629757,1774017038565,-20037.22637915,6.205e-05,2]
[408629758,1774017038583,-276.6,6.205e-05,2]
[408629773,1774017040423,-1247.61714833,6.205e-05,2]
[408629774,1774017040436,-14880.88816857,6.205e-05,2]
[408629775,1774017040446,-500.0,6.205e-05,2]
[408629776,1774017040455,-500.0,6.205e-05,2]
[408629777,1774017040833,-506.50083568,6.205e-05,2]
[408629778,1774017040868,-500.0,6.205e-05,2]
[408629779,1774017040900,-500.0,6.205e-05,2]
[408629780,1774017040910,-500.0,6.205e-05,2]
[408629781,1774017040920,-500.0,6.205e-05,2]
[408629782,1774017040930,-500.0,6.205e-05,2]
[408629783,1774017040940,-500.0,6.205e-05,2]
[408629784,1774017040950,-500.0,6.205e-05,2]
[408629785,1774017040959,-500.0,6.205e-05,2]
[408629786,1774017040970,-500.0,6.205e-05,2]
[408629787,1774017040980,-1614.311,6.206e-05,2]
[408629788,1774017040990,-185.736,6.206e-05,2]
[408629789,1774017041001,-183.0,6.481e-05,2]
[408629790,1774017041011,-438.0,6.481e-05,2]
[408629791,1774017041022,-340.53347192,7.047e-05,2]
[408629792,1774017041032,-389.18111077,7.047e-05,2]
[408629793,1774017041043,-608.09548557,7.179e-05,2]
[408629794,1774017041052,-407.3314149,7.417e-05,2]
[408629795,1774017041062,-426.68113678,7.683e-05,2]
[408629796,1774017041072,-874.78184173,7.893e-05,2]
[408629797,1774017041083,-447.69064052,7.893e-05,2]
[408629798,1774017041094,-551.55635174,8.183e-05,2]
[408629799,1774017041104,-500.0,8.183e-05,2]
[408629800,1774017041114,-500.0,8.183e-05,2]
[408629801,1774017041124,-500.0,8.183e-05,2]
[408629802,1774017041134,-500.0,8.183e-05,2]
[408629803,1774017041146,-500.08654689,8.183e-05,2]
[408629804,1774017041156,-501.49139279,8.183e-05,2]
[408629805,1774017041166,-500.0,8.183e-05,2]
[408629806,1774017041177,-500.0,8.183e-05,2]
[408629807,1774017041196,-500.0,8.202e-05,2]
[408629808,1774017041207,-500.0,8.202e-05,2]
[408629809,1774017041217,-500.0,8.202e-05,2]
[408629810,1774017041230,-500.0,8.202e-05,2]
[408629811,1774017041240,-500.0,8.202e-05,2]
[408629812,1774017041250,-435.30226893,8.202e-05,2]
[408629813,1774017041260,-77651.52627881,8.203e-05,2]
[408629814,1774017041272,-9526.93020474,8.203e-05,2]
[408629815,1774017041284,-2211.07579866,8.203e-05,2]
[408629843,1774017046197,-880.60659941,8.203e-05,2]
[408629844,1774017046256,-5162.25000026,8.203e-05,2]
[408629845,1774017046268,-4361.54203922,8.203e-05,2]
[408629846,1774017046280,-423735.24140805,8.203e-05,2]
[408629847,1774017046291,-4242.87857829,8.203e-05,2]
[408629848,1774017077290,151.0,8.4e-05,120]
[408629849,1774017116029,151.0,8.4e-05,120]
[408629850,1774017142385,-200.0,9.994e-05,120]
[408629851,1774017142427,-200.0,0.00011119,120]
[408629852,1774017142456,-200.0,0.00011401,120]
[408629853,1774017142486,-200.0,0.00012614,120]
[408629854,1774017142548,-432.0,0.00013699,120]
[408629855,1774017142596,-200.0,0.00014364,120]
[408629856,1774017142622,-200.0,0.00014488,120]
[408629857,1774017142649,-200.0,0.00014614,120]
[408629858,1774017142681,-15000.0,0.00015,120]
[408629859,1774017142707,-15000.0,0.00015,120]
[408629860,1774017142740,-200.0,0.00015582,120]
[408629861,1774017142768,-1170.0,0.000157,120]
[408629862,1774017142810,-1444.0,0.00016485,120]
[408629863,1774017142840,-200.0,0.00016629,120]
[408629864,1774017142865,-162.15695958,0.00016879,120]
[408629865,1774017142890,-192.74819385,0.00016879,120]
[408629866,1774017142914,-200.0,0.00016887,120]
[408629867,1774017142944,-260.96008078,0.00017337,120]
[408629868,1774017142972,-290.13697357,0.0001738,120]
[408629869,1774017142997,-155.13539586,0.0001738,120]
[408629870,1774017143023,-331.14101938,0.00017385,120]
[408629871,1774017143048,-319.7613309,0.00017385,120]
[408629872,1774017143074,-184.1661296,0.00017502,120]
[408629873,1774017143099,-185.03304985,0.00017694,120]
[408629874,1774017143124,-163.01503529,0.00017694,120]
[408629875,1774017143148,-219.89413053,0.00017745,120]
[408629876,1774017143172,-5000.0,0.00017745,120]
[408629877,1774017143198,-283.585148,0.00017901,120]
[408629878,1774017143222,-260.96008078,0.00017901,120]
[408629879,1774017143248,-212.44909575,0.00017901,120]
[408629880,1774017143274,-173.63826782,0.00017901,120]
[408629881,1774017143299,-261.23880961,0.00017901,120]
[408629882,1774017143329,-294.6172018,0.00017932,120]
[408629883,1774017143354,-175.21292819,0.00017946,120]
[408629884,1774017143378,-6480.20526566,0.00018,120]
[408629885,1774017143404,-219.70329192,0.00018027,120]
[408629886,1774017143429,-296.04666666,0.00018044,120]
[408629887,1774017143456,-166.81610649,0.00018095,120]
[408629888,1774017143481,-194.04571917,0.00018095,120]
[408629889,1774017143505,-170.62480556,0.00018143,120]
[408629890,1774017143534,-158.32978391,0.00018165,120]
[408629891,1774017143560,-172.20316386,0.0001819,120]
[408629892,1774017143586,-179.01184981,0.0001819,120]
[408629893,1774017143611,-243.9882297,0.0001819,120]
[408629894,1774017143635,-187.14210889,0.00018225,120]
[408629895,1774017143662,-202.7223172,0.00018277,120]
[408629896,1774017143686,-345.68239722,0.00018277,120]
[408629897,1774017143723,-200.0,0.00018334,120]
[408629898,1774017143751,-167.82830357,0.00018377,120]
[408629899,1774017143778,-216.50592398,0.00018484,120]
[408629900,1774017143805,-151.9824073,0.00018512,120]
[408629901,1774017143833,-198.57745571,0.00018512,120]
[408629902,1774017143858,-165.97529063,0.00018512,120]
[408629903,1774017143883,-292.68177185,0.00018564,120]
[408629904,1774017143908,-160.19424162,0.00018585,120]
[408629905,1774017143933,-163.75269639,0.00018585,120]
[408629906,1774017143959,-163.53213229,0.00018638,120]
[408629907,1774017143985,-151.13600341,0.00018662,120]
[408629908,1774017144010,-258.06451681,0.00018662,120]
[408629909,1774017144039,-177.86965255,0.00018688,120]
[408629910,1774017144065,-167.38831514,0.00018736,120]
[408629911,1774017144091,-161.90391863,0.0001875,120]
[408629912,1774017144116,-165.57050969,0.0001875,120]
[408629913,1774017144143,-185.45207739,0.0001875,120]
[408629914,1774017144168,-167.24672679,0.00018928,120]
[408629915,1774017144194,-200.0,0.00018936,120]
[408629916,1774017144220,-200.0,0.00019062,120]
[408629917,1774017144245,-308.94603742,0.00019121,120]
[408629918,1774017144279,-1444.0,0.00019285,120]
[408629919,1774017144305,-152.5298801,0.00019313,120]
[408629920,1774017144332,-200.0,0.00019542,120]
[408629921,1774017144361,-3559.56199184,0.0002,120]
[408629922,1774017144391,-200.0,0.00020028,120]
[408629923,1774017144631,-200.0,0.00020367,120]
[408629924,1774017144662,-200.0,0.00021022,120]
[408629925,1774017144691,-200.0,0.00021798,120]
[408629926,1774017144720,-817.1433017,0.00023017,120]
[408629927,1774017144750,-200.2884848,0.00024,120]
[408629955,1774017333274,166.0,0.00019027,120]
[408629956,1774017334524,166.0,0.00019979,120]
[408629957,1774017335800,166.0,0.00020978,120]
[408629958,1774017337110,166.0,0.00022027,120]
[408629959,1774017338366,166.0,0.00023128,120]
[408629960,1774017339992,166.0,0.00024284,120]
[408629961,1774017341901,2012.0,0.00019986,120]
[408629962,1774017343244,2012.0,0.00020985,120]
[408629963,1774017344541,2012.0,0.00022035,120]
[408629964,1774017345833,2012.0,0.00023136,120]
[408629965,1774017347652,2012.0,0.00024293,120]
[408629966,1774017385477,1444.0,0.00017309,120]
[408629967,1774017385666,1444.0,0.00020249,120]
[408629968,1774017385912,367.78373523,0.00024168,120]
[408629972,1774017617051,1006.0,0.00022123,120]
[408629973,1774017618542,1006.0,0.00023229,120]
[408629974,1774017620046,1006.0,0.0002439,120]
[408629975,1774017670142,500.0,0.0002439,120]
[408629976,1774017670585,500.0,0.0002439,120]
[408629977,1774017670996,500.0,0.0002439,120]
[408629978,1774017671431,500.0,0.0002439,120]
[408629979,1774017672042,500.0,0.0002439,120]
[408629980,1774017672464,500.0,0.0002439,120]
[408629981,1774017672915,501.12486063,0.0002439,120]
[408629982,1774017917583,603.0,0.00022732,120]
[408629983,1774017919522,603.0,0.00023869,120]
[408630010,1774018150370,375.74,0.00024649,120]
[408630011,1774018165608,1444.0,0.00017636,120]
[408630012,1774018166622,542.98535178,0.00020631,120]
[408630015,1774018217566,500.0,0.00024658,120]
[408630016,1774018219710,422.0,0.00022773,120]
[408630017,1774018221576,422.0,0.00023911,120]
[408630039,1774018232145,-1071.458,6.372e-05,10]
[408630041,1774018232159,-327.0,6.372e-05,10]
[408630043,1774018232172,-364.1,6.372e-05,10]
[408630046,1774018232192,-670.44492266,6.372e-05,10]
[408630048,1774018232205,-358.81249998,6.372e-05,10]
[408630050,1774018232218,-719.0,6.372e-05,10]
[408630331,1774018238263,-939.01455542,6.372e-05,10]
[408630334,1774018238309,-966.53880659,6.633e-05,2]
[408630336,1774018238320,-800.0,6.633e-05,3]
[408630338,1774018238330,-514.0,6.633e-05,2]
[408630339,1774018238341,-418.0,6.684e-05,2]
[408630342,1774018238352,-234.0,6.685e-05,2]
[408630344,1774018238361,-163.6215387,6.686e-05,2]
[408630346,1774018238380,-3685.34797474,6.686e-05,2]
[408630348,1774018238392,-450.82222483,6.701e-05,2]
[408630350,1774018238405,-568.39011921,6.701e-05,2]
[408630353,1774018238415,-7472.60713602,6.786e-05,2]
[408630355,1774018238426,-326.14469655,6.798e-05,2]
[408630356,1774018238440,-500.0,6.798e-05,2]
[408630358,1774018238450,-219.55870949,6.798e-05,2]
[408630360,1774018238460,-167.38898174,6.798e-05,2]
[408630361,1774018238470,-500.0,6.798e-05,2]
[408630364,1774018238480,-636.91035699,6.799e-05,2]
[408630383,1774018240699,-512.77059311,6.799e-05,2]
[408630398,1774018243366,-920.34923436,6.799e-05,2]
[408630401,1774018243521,-6709.78661383,6.799e-05,2]
[408630402,1774018243531,-9848.56580408,6.799e-05,2]
[408630403,1774018243959,1000.0,0.00024658,120]
[408630431,1774018246535,-9324.2403483,6.799e-05,2]
[408630432,1774018246547,-22047.37704933,6.799e-05,2]
[408630433,1774018246557,-438.0,6.801e-05,2]
[408630434,1774018246567,-183.0,6.801e-05,2]
[408630435,1774018246577,-8387.09403476,6.886e-05,2]
[408630436,1774018246586,-1291.448,6.886e-05,2]
[408630437,1774018246597,-185.737,6.886e-05,2]
[408630438,1774018246607,-9301.58093357,6.986e-05,2]
[408630439,1774018246617,-9399.40399393,7.086e-05,2]
[408630440,1774018246627,-342.65156911,7.895e-05,2]
[408630441,1774018246636,-2150.738,7.895e-05,2]
[408630442,1774018246646,-165.425646,8.103e-05,2]
[408630443,1774018246654,-2021.878147,8.103e-05,2]
[408630444,1774018246662,-2021.878147,8.103e-05,2]
[408630445,1774018246671,-2021.878147,8.103e-05,2]
[408630446,1774018246679,-2021.878147,8.103e-05,2]
[408630447,1774018246690,-500.0,8.183e-05,2]
[408630448,1774018246699,-500.0,8.183e-05,2]
[408630449,1774018246709,-537.6845,8.198e-05,2]
[408630450,1774018246718,-232452.10505555,8.203e-05,2]
[408630451,1774018246728,-2021.878147,8.203e-05,2]
[408630452,1774018246737,-2021.878147,8.203e-05,2]
[408630453,1774018246746,-2021.878147,8.203e-05,2]
[408630454,1774018246756,-2021.878147,8.203e-05,2]
[408630455,1774018246766,-163.0,8.203e-05,2]
[408630500,1774018247041,-191.46169659,8.203e-05,2]
[408630502,1774018247051,-10216.06783239,8.218e-05,2]